fUSD/lending_fUSD_20240903
["ID","MTS","AMOUNT","RATE_DAILY","PERIOD"]
[337029388,1725333046846,-150.0,0.00014924,2]
[337029389,1725333046855,-150.0,0.00014925,2]
[337029390,1725333046865,-150.0,0.00014927,2]
[337029391,1725333046875,-150.0,0.00014936,2]
[337029392,1725333046885,-150.0,0.00014938,2]
[337029393,1725333046894,-150.0,0.00014939,2]
[337029394,1725333046903,-150.0,0.00014945,2]
[337029395,1725333046913,-150.0,0.00014945,2]
[337029396,1725333046922,-150.0,0.00014948,2]
[337029397,1725333046932,-150.0,0.00014948,2]
[337029398,1725333046941,-150.0,0.00014953,2]
[337029399,1725333046951,-150.0,0.00014965,2]
[337029400,1725333046962,-150.0,0.00014971,2]
[337029401,1725333046971,-150.0,0.00014978,2]
[337029402,1725333046981,-150.0,0.00014981,2]
[337029403,1725333046991,-150.0,0.00014987,2]
[337029404,1725333047001,-150.0,0.00014988,2]
[337029405,1725333047010,-150.0,0.0001499,2]
[337029406,1725333047019,-150.0,0.00014993,2]
[337029407,1725333047028,-41002.74531185,0.00015,2]
[337029408,1725333047041,-3407.63288819,0.00015,2]
[337029409,1725333047053,-37469.86926695,0.00015,2]
[337029410,1725333047066,-1494.82037085,0.00015,2]
[337029411,1725333047083,-5714.01294464,0.00015,2]
[337029412,1725333047094,-11282.35319939,0.00015,2]
[337029413,1725333047106,-2886.749998,0.00015,2]
[337029414,1725333047117,-361.43277495,0.00015,2]
[337029415,1725333047161,-150.0,0.00014778,2]
[337029416,1725333047172,-150.0,0.00014785,2]
[337029417,1725333047183,-150.0,0.00014819,2]
[337029418,1725333047192,-150.0,0.00014895,2]
[337029419,1725333047201,-150.0,0.0001493,2]
[337029420,1725333047211,-150.0,0.00014965,2]
[337029421,1725333047221,-122.70162,0.00015,2]
[337029422,1725333047233,-311.33488107,0.00015,2]
[337029423,1725333047244,-631.37538617,0.00015,2]
[337029424,1725333047255,-1085.68153561,0.00015,2]
[337029425,1725333047267,-21827.46558801,0.00015,2]
[337029426,1725333047278,-356.88365472,0.00015,2]
[337029427,1725333047290,-416.5696332,0.00015,2]
[337029428,1725333047301,-5966.55757461,0.00015,2]
[337029429,1725333047312,-283.51720375,0.00015,2]
[337029430,1725333047323,-1346.35809449,0.00015,2]
[337029431,1725333047334,-8027.63642451,0.00015,2]
[337029432,1725333047345,-277.38,0.00015,2]
[337029433,1725333047356,-990.66339391,0.00015,2]
[337029434,1725333047367,-2654.94895016,0.00015,2]
[337029435,1725333047379,-2009.13156047,0.00015,2]
[337029436,1725333047389,-7806.3,0.00015,2]
[337029437,1725333047410,-134581.52211506,0.00015,2]
[337029438,1725333047421,-2127.62018939,0.00015,2]
[337029439,1725333047462,-150.0,0.00014732,2]
[337029440,1725333047471,-150.0,0.00014743,2]
[337029441,1725333047480,-150.0,0.00014779,2]
[337029442,1725333047489,-150.0,0.00014821,2]
[337029443,1725333047498,-150.0,0.00014866,2]
[337029444,1725333047507,-150.0,0.00014991,2]
[337029445,1725333047517,-773.54415866,0.00015,2]
[337029446,1725333081754,331.72,0.00011963,2]
[337029447,1725333831137,325.01,0.00011873,2]
[337029448,1725333852810,161.06,0.00010959,2]
[337029449,1725333919595,2377.73485766,9e-05,2]
[337029450,1725333953848,4499.66339511,6.94e-05,2]
[337029453,1725333990885,198.4794737,0.000109,2]
[337029454,1725334048601,1841.6733177,0.00012999,2]
[337029455,1725334078658,4786.30288949,0.0001,2]
[337029465,1725334231720,-300.0,0.00013699,2]
[337029466,1725334231730,-20.66312088,0.00013768,2]
[337029468,1725334231741,-399.99687912,0.00013768,2]
[337029469,1725334231750,-105.38927667,0.00013779,2]
[337029470,1725334231761,-1747.03072333,0.00013779,2]
[337029471,1725334231770,-348.76,0.00013779,2]
[337029472,1725334231779,-1599.04,0.00013779,2]
[337029473,1725334231788,-250.0,0.00013781,2]
[337029475,1725334231797,-250.0,0.00013791,2]
[337029477,1725334231807,-179.78,0.00013794,2]
[337029479,1725334231816,-541.84,0.00013795,2]
[337029481,1725334231824,-168.69,0.00013797,2]
[337029482,1725334231833,-3886.04350946,0.00013797,2]
[337029483,1725334231866,-1625.54718631,0.00013797,2]
[337029484,1725334231878,-13855.71930423,0.00013797,2]
[337029485,1725334231889,-250.0,0.00013797,2]
[337029486,1725334231899,-175.01,0.00013804,2]
[337029487,1725334231909,-500.0,0.00013809,2]
[337029488,1725334231919,-499.99,0.00013841,2]
[337029489,1725334231929,-192.06,0.00013842,2]
[337029490,1725334231939,-6887.28,0.00013878,2]
[337029491,1725334231949,-325.01,0.00014137,2]
[337029492,1725334231959,-377.37093,0.00014521,2]
[337029493,1725334231969,-1010.0,0.000147,2]
[337029494,1725334231979,-1000.0,0.000147,2]
[337029495,1725334231989,-1000.0,0.000147,2]
[337029496,1725334232000,-1634.0,0.000147,2]
[337029497,1725334232010,-150.0,0.00014734,2]
[337029498,1725334232021,-150.0,0.00014738,2]
[337029499,1725334232032,-150.0,0.0001474,2]
[337029500,1725334232043,-150.0,0.00014745,2]
[337029501,1725334232053,-150.0,0.00014745,2]
[337029502,1725334232063,-150.0,0.00014747,2]
[337029503,1725334232071,-150.0,0.00014748,2]
[337029504,1725334232081,-150.0,0.00014748,2]
[337029505,1725334232090,-150.0,0.00014755,2]
[337029506,1725334232100,-150.0,0.00014755,2]
[337029507,1725334232110,-150.0,0.00014755,2]
[337029508,1725334232121,-150.0,0.00014756,2]
[337029509,1725334232132,-150.0,0.00014758,2]
[337029510,1725334232142,-150.0,0.0001476,2]
[337029511,1725334232151,-150.0,0.00014762,2]
[337029512,1725334232160,-150.0,0.00014762,2]
[337029513,1725334232170,-150.0,0.00014763,2]
[337029514,1725334232180,-150.0,0.00014763,2]
[337029515,1725334232188,-150.0,0.00014766,2]
[337029516,1725334232198,-1835.00006058,0.00014775,2]
[337029517,1725334232207,-150.0,0.00014776,2]
[337029518,1725334232218,-150.0,0.00014781,2]
[337029519,1725334232227,-150.0,0.00014782,2]
[337029520,1725334232237,-150.0,0.00014786,2]
[337029521,1725334232247,-150.0,0.0001479,2]
[337029522,1725334232258,-150.0,0.00014792,2]
[337029523,1725334232267,-150.0,0.00014798,2]
[337029524,1725334232278,-150.0,0.00014799,2]
[337029525,1725334232288,-800.2358121,0.000148,2]
[337029526,1725334232298,-150.0,0.00014802,2]
[337029527,1725334232307,-150.0,0.00014804,2]
[337029528,1725334232316,-150.0,0.00014806,2]
[337029529,1725334232325,-150.0,0.00014806,2]
[337029530,1725334232335,-150.0,0.00014809,2]
[337029531,1725334232345,-150.0,0.00014813,2]
[337029532,1725334232354,-150.0,0.00014817,2]
[337029533,1725334232363,-150.0,0.00014817,2]
[337029534,1725334232372,-150.0,0.00014821,2]
[337029535,1725334232381,-150.0,0.00014822,2]
[337029536,1725334232390,-150.0,0.00014822,2]
[337029537,1725334232399,-150.0,0.00014822,2]
[337029538,1725334232408,-150.0,0.00014827,2]
[337029539,1725334232419,-150.0,0.00014833,2]
[337029540,1725334232429,-150.0,0.00014833,2]
[337029541,1725334232442,-150.0,0.00014837,2]
[337029542,1725334232452,-150.0,0.00014838,2]
[337029543,1725334232465,-150.0,0.00014841,2]
[337029544,1725334232474,-150.0,0.00014843,2]
[337029545,1725334232483,-150.0,0.00014845,2]
[337029546,1725334232493,-150.0,0.00014845,2]
[337029547,1725334232503,-150.0,0.00014847,2]
[337029548,1725334232512,-500.0,0.00014849,13]
[337029549,1725334232521,-500.0,0.00014849,13]
[337029550,1725334232530,-500.0,0.00014849,13]
[337029551,1725334232541,-500.0,0.00014849,13]
[337029552,1725334232550,-500.0,0.00014849,13]
[337029553,1725334232560,-500.0,0.00014849,13]
[337029554,1725334232570,-500.0,0.00014849,13]
[337029555,1725334232579,-500.0,0.00014849,13]
[337029556,1725334232589,-500.0,0.00014849,13]
[337029557,1725334232598,-500.0,0.00014849,13]
[337029558,1725334232608,-500.0,0.00014849,13]
[337029559,1725334232617,-500.0,0.00014849,13]
[337029560,1725334232626,-500.0,0.00014849,13]
[337029561,1725334232635,-500.0,0.00014849,13]
[337029562,1725334232645,-500.0,0.00014849,13]
[337029563,1725334232653,-500.0,0.00014849,13]
[337029564,1725334232662,-500.0,0.00014849,13]
[337029565,1725334232671,-500.0,0.00014849,13]
[337029566,1725334232680,-500.0,0.00014849,13]
[337029567,1725334232689,-500.0,0.00014849,13]
[337029568,1725334232698,-500.0,0.00014849,13]
[337029569,1725334232707,-500.0,0.00014849,13]
[337029570,1725334232716,-500.0,0.00014849,13]
[337029571,1725334232725,-272.02710544,0.00014849,13]
[337029572,1725334232737,-227.97289456,0.00014849,13]
[337029573,1725334232745,-500.0,0.00014849,13]
[337029574,1725334232754,-500.0,0.00014849,13]
[337029575,1725334232763,-500.0,0.00014849,13]
[337029576,1725334232773,-500.0,0.00014849,13]
[337029577,1725334232781,-438.3257821,0.00014849,13]
[337029578,1725334232792,-61.6742179,0.00014849,13]
[337029579,1725334232801,-500.0,0.00014849,13]
[337029580,1725334232810,-500.0,0.00014849,13]
[337029581,1725334232819,-221.72563573,0.00014849,13]
[337029582,1725334232830,-278.27436427,0.00014849,13]
[337029583,1725334232839,-437.91438239,0.00014849,13]
[337029584,1725334232850,-62.08561761,0.00014849,13]
[337029585,1725334232859,-500.0,0.00014849,13]
[337029586,1725334232867,-500.0,0.00014849,13]
[337029587,1725334232877,-500.0,0.00014849,13]
[337029588,1725334232886,-500.0,0.00014849,13]
[337029589,1725334232895,-500.0,0.00014849,13]
[337029590,1725334232904,-500.0,0.00014849,13]
[337029591,1725334232913,-500.0,0.00014849,13]
[337029592,1725334232922,-500.0,0.00014849,13]
[337029593,1725334232931,-500.0,0.00014849,13]
[337029594,1725334232940,-500.0,0.00014849,13]
[337029595,1725334232949,-500.0,0.00014849,13]
[337029596,1725334232959,-500.0,0.00014849,13]
[337029597,1725334232967,-500.0,0.00014849,13]
[337029598,1725334232976,-74.03176083,0.00014849,13]
[337029599,1725334232987,-425.96823917,0.00014849,13]
[337029600,1725334232996,-500.0,0.00014849,13]
[337029601,1725334233005,-447.48585211,0.00014849,13]
[337029602,1725334233016,-52.51414789,0.00014849,13]
[337029603,1725334233025,-500.0,0.00014849,13]
[337029604,1725334233034,-500.0,0.00014849,13]
[337029605,1725334233043,-500.0,0.00014849,13]
[337029606,1725334233052,-500.0,0.00014849,13]
[337029607,1725334233062,-500.0,0.00014849,13]
[337029608,1725334233071,-500.0,0.00014849,13]
[337029609,1725334233080,-500.0,0.00014849,13]
[337029610,1725334233089,-500.0,0.00014849,13]
[337029611,1725334233099,-500.0,0.00014849,13]
[337029612,1725334233108,-500.0,0.00014849,13]
[337029613,1725334233117,-500.0,0.00014849,13]
[337029614,1725334233126,-500.0,0.00014849,13]
[337029615,1725334233135,-500.0,0.00014849,13]
[337029616,1725334233144,-500.0,0.00014849,13]
[337029617,1725334233153,-500.0,0.00014849,13]
[337029618,1725334233162,-500.0,0.00014849,13]
[337029619,1725334233171,-554.0,0.00014849,13]
[337029620,1725334233180,-500.0,0.00014849,13]
[337029621,1725334233189,-500.0,0.00014849,13]
[337029622,1725334233198,-186.0,0.00014849,13]
[337029623,1725334233207,-1616.23462,0.0001485,2]
[337029624,1725334233216,-150.0,0.00014852,2]
[337029625,1725334233225,-150.0,0.00014853,2]
[337029626,1725334233235,-150.0,0.00014857,2]
[337029627,1725334233245,-150.0,0.00014867,2]
[337029628,1725334233254,-150.0,0.0001487,2]
[337029629,1725334233264,-150.0,0.00014871,2]
[337029630,1725334233274,-150.0,0.00014876,2]
[337029631,1725334233283,-150.0,0.00014881,2]
[337029632,1725334233293,-150.0,0.00014883,2]
[337029633,1725334233303,-150.0,0.00014884,2]
[337029634,1725334233313,-150.0,0.00014891,2]
[337029635,1725334233323,-150.0,0.00014892,2]
[337029636,1725334233333,-150.0,0.00014893,2]
[337029637,1725334233342,-150.0,0.00014895,2]
[337029638,1725334233351,-150.0,0.00014895,2]
[337029639,1725334233360,-850.169,0.000149,2]
[337029640,1725334233370,-962.7807,0.000149,2]
[337029641,1725334233379,-2500.0,0.000149,2]
[337029642,1725334233389,-6031.2183,0.000149,2]
[337029643,1725334233399,-3141.6547,0.000149,2]
[337029644,1725334233408,-746.3636,0.000149,2]
[337029645,1725334233418,-1000.0,0.000149,2]
[337029646,1725334233428,-359.6,0.000149,2]
[337029647,1725334233437,-430.42,0.000149,2]
[337029648,1725334233447,-302.05,0.000149,2]
[337029649,1725334233458,-150.0,0.000149,2]
[337029650,1725334233467,-632.72567922,0.000149,2]
[337029651,1725334233476,-150.0,0.000149,2]
[337029652,1725334233485,-155.97369366,0.000149,2]
[337029653,1725334233495,-497.63297992,0.000149,2]
[337029654,1725334233504,-181.57844867,0.000149,2]
[337029655,1725334233514,-150.0,0.00014906,2]
[337029656,1725334233524,-150.0,0.00014906,2]
[337029657,1725334233535,-150.0,0.00014913,2]
[337029658,1725334233546,-150.0,0.00014919,2]
[337029659,1725334233555,-150.0,0.0001492,2]
[337029660,1725334233565,-150.0,0.00014926,2]
[337029661,1725334233574,-150.0,0.00014926,2]
[337029662,1725334233584,-150.0,0.0001493,2]
[337029663,1725334233594,-150.0,0.00014931,2]
[337029664,1725334233603,-150.0,0.00014933,2]
[337029665,1725334233612,-150.0,0.00014933,2]
[337029666,1725334233623,-150.0,0.00014938,2]
[337029667,1725334233632,-150.0,0.00014939,2]
[337029668,1725334233642,-150.0,0.00014939,2]
[337029669,1725334233651,-150.0,0.00014941,2]
[337029670,1725334233660,-150.0,0.00014948,2]
[337029671,1725334233669,-150.0,0.00014957,2]
[337029672,1725334233679,-150.0,0.00014959,2]
[337029673,1725334233688,-150.0,0.00014964,2]
[337029674,1725334233697,-150.0,0.00014966,2]
[337029675,1725334233706,-150.0,0.00014966,2]
[337029676,1725334233716,-150.0,0.00014967,2]
[337029677,1725334233725,-150.0,0.00014972,2]
[337029678,1725334233735,-500.0,0.00014973,2]
[337029679,1725334233744,-502.14299937,0.00014973,2]
[337029680,1725334233753,-150.0,0.00014973,2]
[337029681,1725334233763,-150.0,0.00014978,2]
[337029682,1725334233772,-150.0,0.00014978,2]
[337029683,1725334233782,-150.0,0.0001498,2]
[337029684,1725334233792,-150.0,0.00014982,2]
[337029685,1725334233801,-869.0,0.00014985,2]
[337029686,1725334233811,-150.0,0.00014986,2]
[337029687,1725334233820,-150.0,0.00014991,2]
[337029688,1725334233829,-150.0,0.00014993,2]
[337029689,1725334233838,-396.3189184,0.00014993,2]
[337029690,1725334233847,-1008.4412181,0.00014993,2]
[337029691,1725334233856,-256.81022719,0.00014993,2]
[337029692,1725334233865,-15966.9384619,0.00014993,2]
[337029693,1725334233875,-15586.1600976,0.00014993,2]
[337029694,1725334233884,-548.6244665,0.00014993,2]
[337029695,1725334233893,-787.5260744,0.00014993,2]
[337029696,1725334233902,-150.0,0.00014994,2]
[337029697,1725334233911,-150.0,0.00014995,2]
[337029698,1725334233921,-150.0,0.00014996,2]
[337029699,1725334233931,-150.0,0.00014997,2]
[337029700,1725334233940,-150.0,0.00014997,2]
[337029701,1725334233949,-117958.16637919,0.00015,2]
[337029702,1725334233962,-465.65120639,0.00015,2]
[337029703,1725334233973,-3439.28301953,0.00015,2]
[337029704,1725334233984,-904.08234998,0.00015,2]
[337029705,1725334233994,-479.28709252,0.00015,2]
[337029706,1725334234005,-311.46425999,0.00015,2]
[337029707,1725334234016,-648.12882621,0.00015,2]
[337029708,1725334234027,-1450.0,0.00015,2]
[337029709,1725334234039,-10371.38293521,0.00015,2]
[337029710,1725334234050,-397.7418011,0.00015,2]
[337029711,1725334234061,-1029.07753147,0.00015,2]
[337029712,1725334234072,-825.54249811,0.00015,2]
[337029713,1725334234083,-2213.34493257,0.00015,2]
[337029714,1725334234105,-619.14994573,0.00015,2]
[337029715,1725334234116,-8681.81578278,0.00015,2]
[337029716,1725334234127,-4458.95684898,0.00015,2]
[337029717,1725334234139,-1690.12155566,0.00015,2]
[337029718,1725334234150,-528.39973584,0.00015,2]
[337029725,1725334238019,-289.08892811,0.00013878,2]
[337029726,1725334238031,-710.91107189,0.00013878,2]
[337029727,1725334238041,-150.0,0.00014727,2]
[337029728,1725334238050,-150.0,0.00014728,2]
[337029729,1725334238059,-150.0,0.00014729,2]
[337029730,1725334238068,-150.0,0.00014735,2]
[337029731,1725334238077,-52.37206302,0.00014736,2]
[337029732,1725334238088,-97.62793698,0.00014736,2]
[337029733,1725334238097,-150.0,0.00014738,2]
[337029734,1725334238106,-150.0,0.00014739,2]
[337029735,1725334238115,-150.0,0.00014746,2]
[337029736,1725334238125,-150.0,0.00014752,2]
[337029737,1725334238134,-150.0,0.00014755,2]
[337029738,1725334238143,-150.0,0.0001476,2]
[337029739,1725334238152,-150.0,0.00014762,2]
[337029740,1725334238161,-150.0,0.00014764,2]
[337029741,1725334238170,-150.0,0.00014766,2]
[337029742,1725334238179,-150.0,0.00014767,2]
[337029743,1725334238188,-150.0,0.00014769,2]
[337029744,1725334238197,-150.0,0.0001477,2]
[337029745,1725334238206,-150.0,0.00014773,2]
[337029746,1725334238215,-150.0,0.00014777,2]
[337029747,1725334238224,-150.0,0.00014782,2]
[337029748,1725334238233,-150.0,0.00014782,2]
[337029749,1725334238243,-150.0,0.00014783,2]
[337029750,1725334238251,-150.0,0.00014783,2]
[337029751,1725334238261,-150.0,0.00014784,2]
[337029752,1725334238270,-150.0,0.00014785,2]
[337029753,1725334238279,-150.0,0.00014786,2]
[337029754,1725334238288,-150.0,0.00014786,2]
[337029755,1725334238297,-150.0,0.00014795,2]
[337029756,1725334238306,-150.0,0.00014799,2]
[337029757,1725334238324,-150.0,0.000148,2]
[337029758,1725334238333,-150.0,0.00014804,2]
[337029759,1725334238342,-150.0,0.00014806,2]
[337029760,1725334238352,-150.0,0.00014815,2]
[337029761,1725334238361,-150.0,0.00014817,2]
[337029762,1725334238370,-150.0,0.00014832,2]
[337029763,1725334238379,-150.0,0.00014835,2]
[337029764,1725334238389,-150.0,0.00014835,2]
[337029765,1725334238399,-150.0,0.00014835,2]
[337029766,1725334238408,-150.0,0.00014836,2]
[337029767,1725334238418,-150.0,0.00014843,2]
[337029768,1725334238427,-150.0,0.00014843,2]
[337029769,1725334238436,-150.0,0.00014845,2]
[337029770,1725334238445,-150.0,0.00014845,2]
[337029771,1725334238458,-150.0,0.00014846,2]
[337029772,1725334238467,-150.0,0.00014849,2]
[337029773,1725334238476,-150.0,0.00014855,2]
[337029774,1725334238486,-150.0,0.00014865,2]
[337029775,1725334238496,-150.0,0.00014865,2]
[337029776,1725334238506,-150.0,0.00014867,2]
[337029777,1725334238516,-150.0,0.00014871,2]
[337029778,1725334238525,-150.0,0.00014872,2]
[337029779,1725334238536,-150.0,0.00014872,2]
[337029780,1725334238545,-150.0,0.00014874,2]
[337029781,1725334238554,-150.0,0.00014879,2]
[337029782,1725334238566,-150.0,0.00014881,2]
[337029783,1725334238575,-150.0,0.00014881,2]
[337029784,1725334238584,-150.0,0.00014882,2]
[337029785,1725334238594,-150.0,0.00014884,2]
[337029786,1725334238604,-150.0,0.00014886,2]
[337029787,1725334238612,-150.0,0.00014891,2]
[337029788,1725334238622,-150.0,0.00014894,2]
[337029789,1725334238631,-150.0,0.00014896,2]
[337029790,1725334238640,-150.0,0.00014896,2]
[337029791,1725334238650,-150.0,0.00014899,2]
[337029792,1725334238659,-150.0,0.00014899,2]
[337029793,1725334238668,-150.0,0.00014903,2]
[337029794,1725334238678,-150.0,0.00014907,2]
[337029795,1725334238687,-150.0,0.0001491,2]
[337029796,1725334238697,-150.0,0.0001491,2]
[337029797,1725334238705,-150.0,0.00014911,2]
[337029798,1725334238714,-150.0,0.00014916,2]
[337029799,1725334238724,-150.0,0.00014918,2]
[337029800,1725334238733,-150.0,0.0001492,2]
[337029801,1725334238743,-150.0,0.00014924,2]
[337029802,1725334238752,-150.0,0.00014924,2]
[337029803,1725334238762,-150.0,0.00014932,2]
[337029804,1725334238771,-150.0,0.00014934,2]
[337029805,1725334238780,-150.0,0.00014935,2]
[337029806,1725334238790,-150.0,0.00014946,2]
[337029807,1725334238799,-150.0,0.00014948,2]
[337029808,1725334238808,-150.0,0.00014952,2]
[337029809,1725334238818,-150.0,0.00014957,2]
[337029810,1725334238827,-150.0,0.00014959,2]
[337029811,1725334238836,-150.0,0.00014961,2]
[337029812,1725334238846,-150.0,0.00014962,2]
[337029813,1725334238856,-150.0,0.00014968,2]
[337029814,1725334238866,-150.0,0.00014968,2]
[337029815,1725334238875,-150.0,0.00014971,2]
[337029816,1725334238885,-150.0,0.00014972,2]
[337029817,1725334238894,-150.0,0.00014973,2]
[337029818,1725334238904,-150.0,0.00014974,2]
[337029819,1725334238913,-150.0,0.00014975,2]
[337029820,1725334238922,-150.0,0.00014981,2]
[337029821,1725334238932,-150.0,0.00014981,2]
[337029822,1725334238941,-150.0,0.00014982,2]
[337029823,1725334238950,-150.0,0.00014986,2]
[337029824,1725334238958,-150.0,0.00014994,2]
[337029825,1725334238967,-150.0,0.00014996,2]
[337029826,1725334238977,-13255.50305291,0.00015,2]
[337029827,1725334238989,-919.26736425,0.00015,2]
[337029828,1725334239013,-150.0,0.00014755,2]
[337029829,1725334239022,-150.0,0.00014774,2]
[337029830,1725334239031,-94.14575585,0.0001482,2]
[337029831,1725334239042,-55.85424415,0.0001482,2]
[337029832,1725334239052,-2883.49029016,0.00015,2]
[337029833,1725334239064,-4204.82141487,0.00015,2]
[337029834,1725334239075,-2841.5102928,0.00015,2]
[337029835,1725334239087,-1921.64848006,0.00015,2]
[337029836,1725334239098,-5686.33463656,0.00015,2]
[337029837,1725334239109,-2756.36521699,0.00015,2]
[337029838,1725334239143,-150.0,0.00014877,2]
[337029839,1725334239152,-150.0,0.00014923,2]
[337029840,1725334239161,-2594.2789726,0.00015,2]
[337029841,1725334239172,-2076.34305428,0.00015,2]
[337029842,1725334239206,-150.0,0.00014844,2]
[337029843,1725334239215,-150.0,0.00014886,2]
[337029844,1725334239224,-150.0,0.00014899,2]
[337029845,1725334239233,-150.0,0.00014952,2]
[337029846,1725334239242,-1324.46759506,0.00015,2]
[337029847,1725334239252,-999.9592,0.00015,2]
[337029854,1725334240032,-150.0,0.00014735,2]
[337029855,1725334240042,-150.0,0.00014736,2]
[337029856,1725334240052,-150.0,0.00014739,2]
[337029857,1725334240063,-150.0,0.00014746,2]
[337029858,1725334240072,-150.0,0.00014771,2]
[337029859,1725334240081,-150.0,0.00014772,2]
[337029860,1725334240092,-150.0,0.00014778,2]
[337029861,1725334240102,-150.0,0.00014788,2]
[337029862,1725334240112,-150.0,0.00014797,2]
[337029863,1725334240122,-150.0,0.00014803,2]
[337029864,1725334240131,-150.0,0.00014806,2]
[337029865,1725334240142,-150.0,0.00014811,2]
[337029866,1725334240154,-150.0,0.00014813,2]
[337029867,1725334240165,-150.0,0.00014815,2]
[337029868,1725334240176,-150.0,0.00014821,2]
[337029869,1725334240186,-150.0,0.00014824,2]
[337029870,1725334240198,-150.0,0.00014828,2]
[337029871,1725334240207,-150.0,0.00014837,2]
[337029872,1725334240216,-150.0,0.00014839,2]
[337029873,1725334240225,-150.0,0.00014841,2]
[337029874,1725334240235,-150.0,0.00014842,2]
[337029875,1725334240244,-150.0,0.00014851,2]
[337029876,1725334240255,-150.0,0.00014855,2]
[337029877,1725334240265,-150.0,0.00014855,2]
[337029878,1725334240275,-150.0,0.00014868,2]
[337029879,1725334240284,-150.0,0.00014872,2]
[337029880,1725334240296,-150.0,0.00014881,2]
[337029881,1725334240306,-150.0,0.000149,2]
[337029882,1725334240315,-150.0,0.00014905,2]
[337029883,1725334240324,-150.0,0.00014922,2]
[337029884,1725334240333,-150.0,0.00014923,2]
[337029885,1725334240342,-150.0,0.00014923,2]
[337029886,1725334240352,-150.0,0.00014926,2]
[337029887,1725334240362,-167.43512377,0.00014929,2]
[337029888,1725334240373,-150.0,0.00014931,2]
[337029889,1725334240384,-150.0,0.00014954,2]
[337029890,1725334240394,-150.0,0.00014964,2]
[337029891,1725334240404,-150.0,0.00014982,2]
[337029892,1725334240413,-150.0,0.00014993,2]
[337029894,1725334240423,-150.0,0.00014995,2]
[337029896,1725334240432,-14962.89071766,0.00015,2]
[337029898,1725334240444,-2924.41004049,0.00015,2]
[337029901,1725334240462,-27241.57039901,0.00015,2]
[337029903,1725334240473,-8725.1470408,0.00015,2]
[337029905,1725334240484,-43763.97841864,0.00015,2]
[337029908,1725334240510,-150.0,0.00014774,2]
[337029910,1725334240520,-150.0,0.00014825,2]
[337029912,1725334240530,-150.0,0.00014896,2]
[337029914,1725334240540,-2561.33044689,0.00015,2]
[337029916,1725334240551,-437657.36996632,0.00015,2]
[337029917,1725334240563,-64152.21537668,0.00015,2]
[337029918,1725334240573,-18365.0,0.00015,2]
[337029919,1725334240582,-2187112.02914167,0.00015,2]
[337029920,1725334240594,-2136.05461896,0.00015,2]
[337029921,1725334240614,-150.0,0.00014735,2]
[337029922,1725334240623,-150.0,0.00014975,2]
[337029923,1725334240633,-276.99,0.00015,2]
[337029924,1725334240644,-1608.91586877,0.00015,2]
[337029950,1725334243777,-150.0,0.00014744,2]
[337029951,1725334243787,-150.0,0.00014796,2]
[337029952,1725334243797,-150.0,0.00014929,2]
[337029953,1725334243806,-150.0,0.0001496,2]